[Event "Titled Tuesday Blitz March 08 Early 2022"]
[White "Baker, Chris W"]
[Black "Sahin, Handenur"]
[WhiteFideId "401676"]
[BlackFideId "6334865"]
[WhiteElo "2294"]
[BlackElo "2167"]
[Result "0-1"]
[Round "07"]
[TimeControl "180+1"]
[Date "2022.03.09"]
[WhiteClock "0:00:03"]
[BlackClock "0:00:19"]

1. d4 {[%clk 0:03:00]}  d5 {[%clk 0:02:59]} 2. Nf3 {[%clk 0:02:59]}  Nf6 {[%clk 0:02:58]} 3. c4 {[%clk 0:02:58]}  c6 {[%clk 0:02:59]} 4. cxd5 {[%clk 0:02:57]}  cxd5 {[%clk 0:02:59]} 5. Nc3 {[%clk 0:02:57]}  Nc6 {[%clk 0:02:59]} 6. Bf4 {[%clk 0:02:57]}  Bf5 {[%clk 0:02:59]} 7. e3 {[%clk 0:02:56]}  a6 {[%clk 0:02:42]} 8. Bd3 {[%clk 0:02:55]}  Bg6 {[%clk 0:02:41]} 9. O-O {[%clk 0:02:53]}  e6 {[%clk 0:02:40]} 10. Rc1 {[%clk 0:02:46]}  Bd6 {[%clk 0:02:39]} 11. Bg3 {[%clk 0:02:34]}  O-O {[%clk 0:02:30]} 12. Bxg6 {[%clk 0:02:24]}  hxg6 {[%clk 0:02:30]} 13. Bh4 {[%clk 0:02:16]}  Be7 {[%clk 0:02:29]} 14. Qb3 {[%clk 0:02:11]}  Na5 {[%clk 0:02:25]} 15. Qc2 {[%clk 0:02:02]}  Rc8 {[%clk 0:02:23]} 16. Bxf6 {[%clk 0:01:58]}  Bxf6 {[%clk 0:02:22]} 17. Qe2 {[%clk 0:01:41]}  Nc4 {[%clk 0:02:20]} 18. b3 {[%clk 0:01:38]}  Nd6 {[%clk 0:02:19]} 19. Na4 {[%clk 0:01:35]}  Ne4 {[%clk 0:02:18]} 20. Nd2 {[%clk 0:01:21]}  Nd6 {[%clk 0:02:08]} 21. Nc5 {[%clk 0:01:15]}  Rc6 {[%clk 0:01:46]} 22. Nxb7 {[%clk 0:01:11]}  Qc7 {[%clk 0:01:36]} 23. Rxc6 {[%clk 0:01:10]}  Qxc6 {[%clk 0:01:36]} 24. Nxd6 {[%clk 0:01:10]}  Qxd6 {[%clk 0:01:36]} 25. Rc1 {[%clk 0:01:10]}  Qa3 {[%clk 0:01:35]} 26. Rc2 {[%clk 0:01:03]}  Rb8 {[%clk 0:01:29]} 27. Qd1 {[%clk 0:01:02]}  e5 {[%clk 0:01:09]} 28. dxe5 {[%clk 0:01:00]}  Bxe5 {[%clk 0:01:09]} 29. Nf3 {[%clk 0:01:00]}  Bb2 {[%clk 0:01:05]} 30. Qxd5 {[%clk 0:00:59]}  Qxa2 {[%clk 0:01:05]} 31. h4 {[%clk 0:00:58]}  Qb1+ {[%clk 0:01:04]} 32. Ne1 {[%clk 0:00:50]}  Qxe1+ {[%clk 0:01:00]} 33. Kh2 {[%clk 0:00:50]}  Bf6 {[%clk 0:00:59]} 34. Rc7 {[%clk 0:00:47]}  Rf8 {[%clk 0:00:54]} 35. Kg3 {[%clk 0:00:47]}  Qb4 {[%clk 0:00:53]} 36. Rc4 {[%clk 0:00:45]}  Qb8+ {[%clk 0:00:53]} 37. Kh3 {[%clk 0:00:44]}  Rd8 {[%clk 0:00:50]} 38. Qe4 {[%clk 0:00:42]}  Rc8 {[%clk 0:00:45]} 39. g4 {[%clk 0:00:41]}  Rxc4 {[%clk 0:00:44]} 40. Qxc4 {[%clk 0:00:38]}  Qb5 {[%clk 0:00:41]} 41. Qc8+ {[%clk 0:00:25]}  Kh7 {[%clk 0:00:41]} 42. g5 {[%clk 0:00:17]}  Qf1+ {[%clk 0:00:40]} 43. Kg3 {[%clk 0:00:16]}  Be5+ {[%clk 0:00:40]} 44. Kf3 {[%clk 0:00:16]}  Qd1+ {[%clk 0:00:33]} 45. Kg2 {[%clk 0:00:14]}  Qd5+ {[%clk 0:00:33]} 46. Kf1 {[%clk 0:00:13]}  Qxb3 {[%clk 0:00:31]} 47. h5 {[%clk 0:00:11]}  Qb1+ {[%clk 0:00:31]} 48. Kg2 {[%clk 0:00:10]}  Qe4+ {[%clk 0:00:30]} 49. Kf1 {[%clk 0:00:10]}  gxh5 {[%clk 0:00:30]} 50. Qxa6 {[%clk 0:00:08]}  Qh1+ {[%clk 0:00:28]} 51. Ke2 {[%clk 0:00:08]}  Qe4 {[%clk 0:00:21]} 52. Qa7 {[%clk 0:00:03]}  Kg6 {[%clk 0:00:19]} 0-1


[Site "https://www.chess.com"]

[Event "Titled Tuesday Blitz March 08 Early 2022"]
[White "Bilych, Olexiy"]
[Black "Beerdsen, Thomas"]
[WhiteFideId "14156504"]
[BlackFideId "1030108"]
[WhiteElo "2176"]
[BlackElo "2585"]
[Result "0-1"]
[Round "07"]
[TimeControl "180+1"]
[Date "2022.03.08"]
[WhiteClock "0:00:16"]
[BlackClock "0:01:00"]

1. e4 {[%clk 0:03:00]}  e5 {[%clk 0:03:00]} 2. Nf3 {[%clk 0:03:01]}  Nc6 {[%clk 0:03:00]} 3. Bc4 {[%clk 0:03:01]}  Nf6 {[%clk 0:03:00]} 4. d3 {[%clk 0:03:01]}  h6 {[%clk 0:03:01]} 5. O-O {[%clk 0:03:01]}  d6 {[%clk 0:03:01]} 6. a4 {[%clk 0:03:01]}  g5 {[%clk 0:03:02]} 7. a5 {[%clk 0:03:01]}  g4 {[%clk 0:03:02]} 8. Nfd2 {[%clk 0:02:57]}  a6 {[%clk 0:03:02]} 9. Re1 {[%clk 0:02:56]}  h5 {[%clk 0:03:01]} 10. Nf1 {[%clk 0:02:56]}  h4 {[%clk 0:03:02]} 11. Nc3 {[%clk 0:02:50]}  Nd4 {[%clk 0:02:52]} 12. Bg5 {[%clk 0:02:40]}  c6 {[%clk 0:02:32]} 13. Ne2 {[%clk 0:02:07]}  Nf3+ {[%clk 0:02:01]} 14. gxf3 {[%clk 0:02:04]}  gxf3 {[%clk 0:02:01]} 15. Nd4 {[%clk 0:01:50]}  exd4 {[%clk 0:01:37]} 16. e5 {[%clk 0:01:50]}  Rg8 {[%clk 0:01:27]} 17. exf6+ {[%clk 0:01:27]}  Kd7 {[%clk 0:01:28]} 18. Qxf3 {[%clk 0:01:12]}  Rxg5+ {[%clk 0:01:27]} 19. Kh1 {[%clk 0:01:12]}  d5 {[%clk 0:01:28]} 20. Qf4 {[%clk 0:00:51]}  Rg6 {[%clk 0:01:27]} 21. Qxd4 {[%clk 0:00:50]}  Qxf6 {[%clk 0:01:18]} 22. Qxf6 {[%clk 0:00:42]}  Rxf6 {[%clk 0:01:19]} 23. Bb3 {[%clk 0:00:41]}  Rxf2 {[%clk 0:01:19]} 24. Ne3 {[%clk 0:00:39]}  Bd6 {[%clk 0:01:06]} 25. Ng4 {[%clk 0:00:38]}  Rf4 {[%clk 0:01:06]} 26. Ne5+ {[%clk 0:00:39]}  Kc7 {[%clk 0:01:05]} 27. Re2 {[%clk 0:00:26]}  Bh3 {[%clk 0:01:00]} 28. Rg1 {[%clk 0:00:17]}  Re8 {[%clk 0:01:00]} 29. Rge1 {[%clk 0:00:16]}  Bxe5 {[%clk 0:01:00]} 0-1


[Site "https://www.chess.com"]

[Event "Titled Tuesday Blitz March 08 Early 2022"]
[White "Bryakin, Mikhail"]
[Black "Gabdrakhmanov, Azat"]
[WhiteFideId "4165314"]
[BlackFideId "34189197"]
[WhiteElo "2417"]
[BlackElo "2279"]
[Result "1-0"]
[Round "07"]
[TimeControl "180+1"]
[Date "2022.03.08"]
[WhiteClock "0:01:09"]
[BlackClock "0:00:04"]

1. e4 {[%clk 0:03:00]}  c5 {[%clk 0:03:00]} 2. Nf3 {[%clk 0:02:57]}  e6 {[%clk 0:03:00]} 3. c3 {[%clk 0:02:55]}  d5 {[%clk 0:02:59]} 4. exd5 {[%clk 0:02:54]}  Qxd5 {[%clk 0:03:00]} 5. d4 {[%clk 0:02:54]}  Nf6 {[%clk 0:03:00]} 6. Be2 {[%clk 0:02:53]}  Nc6 {[%clk 0:02:59]} 7. Na3 {[%clk 0:02:53]}  cxd4 {[%clk 0:02:20]} 8. Nb5 {[%clk 0:02:50]}  Qd8 {[%clk 0:02:15]} 9. Nfxd4 {[%clk 0:02:49]}  Nxd4 {[%clk 0:02:05]} 10. Qxd4 {[%clk 0:02:43]}  Qxd4 {[%clk 0:02:04]} 11. Nxd4 {[%clk 0:02:44]}  Bd6 {[%clk 0:02:01]} 12. Bf3 {[%clk 0:02:30]}  Nd7 {[%clk 0:01:51]} 13. Be3 {[%clk 0:02:25]}  a6 {[%clk 0:01:47]} 14. O-O-O {[%clk 0:02:24]}  Ke7 {[%clk 0:01:44]} 15. Rhe1 {[%clk 0:02:22]}  Ne5 {[%clk 0:01:41]} 16. Be2 {[%clk 0:02:05]}  Rd8 {[%clk 0:01:32]} 17. f4 {[%clk 0:02:05]}  Nc6 {[%clk 0:01:28]} 18. Nxc6+ {[%clk 0:02:03]}  bxc6 {[%clk 0:01:27]} 19. Bf3 {[%clk 0:02:02]}  Bb7 {[%clk 0:01:19]} 20. g3 {[%clk 0:02:02]}  Rd7 {[%clk 0:01:15]} 21. Rd2 {[%clk 0:01:50]}  Bc7 {[%clk 0:01:08]} 22. Bc5+ {[%clk 0:01:48]}  Ke8 {[%clk 0:01:08]} 23. Rxd7 {[%clk 0:01:45]}  Kxd7 {[%clk 0:01:07]} 24. a4 {[%clk 0:01:35]}  Rd8 {[%clk 0:01:06]} 25. Rd1+ {[%clk 0:01:34]}  Kc8 {[%clk 0:00:58]} 26. b4 {[%clk 0:01:33]}  Rxd1+ {[%clk 0:00:54]} 27. Kxd1 {[%clk 0:01:34]}  Bd8 {[%clk 0:00:55]} 28. Ke2 {[%clk 0:01:33]}  Bf6 {[%clk 0:00:54]} 29. Kd3 {[%clk 0:01:33]}  Kc7 {[%clk 0:00:54]} 30. Be4 {[%clk 0:01:34]}  g6 {[%clk 0:00:53]} 31. Bd4 {[%clk 0:01:34]}  Bxd4 {[%clk 0:00:20]} 32. Kxd4 {[%clk 0:01:34]}  f5 {[%clk 0:00:19]} 33. Bd3 {[%clk 0:01:31]}  Kd6 {[%clk 0:00:19]} 34. c4 {[%clk 0:01:25]}  c5+ {[%clk 0:00:09]} 35. bxc5+ {[%clk 0:01:26]}  Kd7 {[%clk 0:00:05]} 36. a5 {[%clk 0:01:27]}  Bc6 {[%clk 0:00:05]} 37. Ke5 {[%clk 0:01:27]}  Ke7 {[%clk 0:00:05]} 38. Be2 {[%clk 0:01:22]}  Bb7 {[%clk 0:00:05]} 39. g4 {[%clk 0:01:22]}  Bc6 {[%clk 0:00:05]} 40. h3 {[%clk 0:01:22]}  h6 {[%clk 0:00:05]} 41. h4 {[%clk 0:01:17]}  Bb7 {[%clk 0:00:03]} 42. h5 {[%clk 0:01:17]}  gxh5 {[%clk 0:00:03]} 43. gxf5 {[%clk 0:01:13]}  exf5 {[%clk 0:00:04]} 44. Bxh5 {[%clk 0:01:13]}  Bc8 {[%clk 0:00:03]} 45. Bg6 {[%clk 0:01:14]}  Bd7 {[%clk 0:00:03]} 46. Bxf5 {[%clk 0:01:12]}  Bc6 {[%clk 0:00:04]} 47. Bg4 {[%clk 0:01:12]}  Be8 {[%clk 0:00:04]} 48. Bf3 {[%clk 0:01:12]}  h5 {[%clk 0:00:04]} 49. c6 {[%clk 0:01:12]}  h4 {[%clk 0:00:04]} 50. f5 {[%clk 0:01:08]}  h3 {[%clk 0:00:04]} 51. f6+ {[%clk 0:01:08]}  Kd8 {[%clk 0:00:03]} 52. Kd6 {[%clk 0:01:09]}  Bf7 {[%clk 0:00:03]} 53. c7+ {[%clk 0:01:09]}  Kc8 {[%clk 0:00:04]} 54. Bg4+ {[%clk 0:01:09]} 1-0


[Site "https://www.chess.com"]

[Event "Titled Tuesday Blitz March 08 Early 2022"]
[White "Butti, Enrique"]
[Black "Bures, Vit"]
[WhiteFideId "3700470"]
[BlackFideId "309052"]
[WhiteElo "2080"]
[BlackElo "2118"]
[Result "0-1"]
[Round "07"]
[TimeControl "180+1"]
[Date "2022.03.09"]
[WhiteClock "0:00:27"]
[BlackClock "0:00:34"]

1. Nf3 {[%clk 0:02:59]}  d5 {[%clk 0:02:59]} 2. c4 {[%clk 0:02:58]}  d4 {[%clk 0:02:59]} 3. b4 {[%clk 0:02:57]}  f6 {[%clk 0:02:59]} 4. e3 {[%clk 0:02:52]}  e5 {[%clk 0:02:59]} 5. exd4 {[%clk 0:02:51]}  e4 {[%clk 0:02:59]} 6. Ng1 {[%clk 0:02:49]}  Qxd4 {[%clk 0:02:58]} 7. Nc3 {[%clk 0:02:48]}  Bxb4 {[%clk 0:02:58]} 8. Nge2 {[%clk 0:02:47]}  Qe5 {[%clk 0:02:29]} 9. Rb1 {[%clk 0:02:36]}  Nc6 {[%clk 0:02:27]} 10. Nd5 {[%clk 0:02:27]}  Bd6 {[%clk 0:01:53]} 11. Bb2 {[%clk 0:02:04]}  Qh5 {[%clk 0:01:53]} 12. Qc2 {[%clk 0:01:52]}  Nge7 {[%clk 0:01:24]} 13. Nd4 {[%clk 0:01:29]}  Nxd4 {[%clk 0:01:17]} 14. Bxd4 {[%clk 0:01:28]}  O-O {[%clk 0:01:09]} 15. c5 {[%clk 0:01:11]}  Nxd5 {[%clk 0:01:00]} 16. cxd6 {[%clk 0:01:09]}  cxd6 {[%clk 0:00:49]} 17. Bc4 {[%clk 0:01:08]}  Be6 {[%clk 0:00:46]} 18. Rxb7 {[%clk 0:01:03]}  Rfe8 {[%clk 0:00:37]} 19. O-O {[%clk 0:00:56]}  Nf4 {[%clk 0:00:37]} 20. Bxe6+ {[%clk 0:00:46]}  Rxe6 {[%clk 0:00:38]} 21. Qc7 {[%clk 0:00:43]}  Qg6 {[%clk 0:00:33]} 22. g3 {[%clk 0:00:27]}  Ne2+ {[%clk 0:00:33]} 23. Kh1 {[%clk 0:00:27]}  Nxd4 {[%clk 0:00:34]} 0-1


[Site "https://www.chess.com"]

[Event "Titled Tuesday Blitz March 08 Early 2022"]
[White "Chigaev, Maksim"]
[Black "Krysa, Leandro"]
[WhiteFideId "4108116"]
[BlackFideId "116807"]
[WhiteElo "2502"]
[BlackElo "2490"]
[Result "1-0"]
[Round "07"]
[TimeControl "180+1"]
[Date "2022.03.08"]
[WhiteClock "0:02:06"]
[BlackClock "0:01:31"]

1. d4 {[%clk 0:03:00]}  d5 {[%clk 0:02:57]} 2. c4 {[%clk 0:03:00]}  c6 {[%clk 0:02:57]} 3. Nf3 {[%clk 0:03:01]}  Nf6 {[%clk 0:02:57]} 4. Nc3 {[%clk 0:03:01]}  dxc4 {[%clk 0:02:58]} 5. e4 {[%clk 0:02:59]}  b5 {[%clk 0:02:57]} 6. Be2 {[%clk 0:02:59]}  Bg4 {[%clk 0:02:56]} 7. O-O {[%clk 0:02:58]}  e6 {[%clk 0:02:54]} 8. a4 {[%clk 0:02:55]}  b4 {[%clk 0:02:50]} 9. e5 {[%clk 0:02:55]}  bxc3 {[%clk 0:02:42]} 10. exf6 {[%clk 0:02:55]}  cxb2 {[%clk 0:02:41]} 11. fxg7 {[%clk 0:02:54]}  bxa1=Q {[%clk 0:02:32]} 12. gxh8=Q {[%clk 0:02:53]}  Nd7 {[%clk 0:02:28]} 13. Ng5 {[%clk 0:02:32]}  Bxe2 {[%clk 0:01:54]} 14. Qxe2 {[%clk 0:02:33]}  Qf6 {[%clk 0:01:32]} 15. Qxf6 {[%clk 0:02:21]}  Nxf6 {[%clk 0:01:32]} 16. Qf3 {[%clk 0:02:06]}  Ke7 {[%clk 0:01:31]} 17. Ba3+ {[%clk 0:02:06]} 1-0


[Site "https://www.chess.com"]

[Event "Titled Tuesday Blitz March 08 Early 2022"]
[White "Chizhikov, Vladislav"]
[Black "Ptacnikova, Lenka"]
[WhiteFideId "4178157"]
[BlackFideId "305650"]
[WhiteElo "2120"]
[BlackElo "1923"]
[Result "0-1"]
[Round "07"]
[TimeControl "180+1"]
[Date "2022.03.09"]
[WhiteClock "0:00:09"]
[BlackClock "0:00:06"]

1. e4 {[%clk 0:03:00]}  c5 {[%clk 0:02:59]} 2. Nf3 {[%clk 0:02:53]}  e6 {[%clk 0:02:59]} 3. b3 {[%clk 0:02:52]}  Nf6 {[%clk 0:02:58]} 4. e5 {[%clk 0:02:51]}  Nd5 {[%clk 0:02:58]} 5. c4 {[%clk 0:02:51]}  Nc7 {[%clk 0:02:58]} 6. Nc3 {[%clk 0:02:50]}  d5 {[%clk 0:02:57]} 7. exd6 {[%clk 0:02:49]}  Bxd6 {[%clk 0:02:56]} 8. Ne4 {[%clk 0:02:47]}  Be7 {[%clk 0:02:55]} 9. Bb2 {[%clk 0:02:48]}  O-O {[%clk 0:02:55]} 10. d4 {[%clk 0:02:40]}  cxd4 {[%clk 0:02:47]} 11. Qxd4 {[%clk 0:02:39]}  Bb4+ {[%clk 0:02:44]} 12. Nfd2 {[%clk 0:02:28]}  Qxd4 {[%clk 0:02:39]} 13. Bxd4 {[%clk 0:02:27]}  Nc6 {[%clk 0:02:40]} 14. Bb2 {[%clk 0:02:19]}  f5 {[%clk 0:02:28]} 15. Nc3 {[%clk 0:02:18]}  e5 {[%clk 0:02:12]} 16. O-O-O {[%clk 0:02:17]}  e4 {[%clk 0:02:10]} 17. Be2 {[%clk 0:02:00]}  Be6 {[%clk 0:01:57]} 18. Rhe1 {[%clk 0:01:56]}  Rad8 {[%clk 0:01:55]} 19. Nf1 {[%clk 0:01:55]}  Bd6 {[%clk 0:01:49]} 20. g3 {[%clk 0:01:46]}  Bb4 {[%clk 0:01:44]} 21. Ne3 {[%clk 0:01:43]}  Nd4 {[%clk 0:01:41]} 22. Ng2 {[%clk 0:01:28]}  Bf7 {[%clk 0:01:16]} 23. h4 {[%clk 0:01:10]}  Nce6 {[%clk 0:01:09]} 24. Bf1 {[%clk 0:01:04]}  Bh5 {[%clk 0:00:49]} 25. Rd2 {[%clk 0:01:02]}  Nf3 {[%clk 0:00:39]} 26. Rxd8 {[%clk 0:01:01]}  Rxd8 {[%clk 0:00:38]} 27. Rd1 {[%clk 0:01:01]}  Ned4 {[%clk 0:00:19]} 28. Nd5 {[%clk 0:00:55]}  Bc5 {[%clk 0:00:17]} 29. Ndf4 {[%clk 0:00:48]}  Bg4 {[%clk 0:00:16]} 30. Ne3 {[%clk 0:00:48]}  h5 {[%clk 0:00:14]} 31. Bg2 {[%clk 0:00:19]}  g6 {[%clk 0:00:12]} 32. Nxg4 {[%clk 0:00:19]}  hxg4 {[%clk 0:00:12]} 33. Bxf3 {[%clk 0:00:19]}  gxf3 {[%clk 0:00:10]} 34. Nxg6 {[%clk 0:00:16]}  Ne2+ {[%clk 0:00:10]} 35. Kc2 {[%clk 0:00:16]}  Rxd1 {[%clk 0:00:10]} 36. Kxd1 {[%clk 0:00:17]}  Bxf2 {[%clk 0:00:10]} 37. Ne5 {[%clk 0:00:16]}  Nxg3 {[%clk 0:00:09]} 38. h5 {[%clk 0:00:16]}  Nxh5 {[%clk 0:00:08]} 39. Ng6 {[%clk 0:00:16]}  Ng3 {[%clk 0:00:07]} 40. Be5 {[%clk 0:00:15]}  e3 {[%clk 0:00:05]} 41. Nf4 {[%clk 0:00:09]}  e2+ {[%clk 0:00:05]} 42. Nxe2 {[%clk 0:00:09]}  fxe2+ {[%clk 0:00:06]} 0-1


[Site "https://www.chess.com"]

[Event "Titled Tuesday Blitz March 08 Early 2022"]
[White "Clawitter, Craig"]
[Black "Shubenkova, Veronika"]
[WhiteFideId "2023105"]
[BlackFideId "44124040"]
[WhiteElo "2267"]
[BlackElo "1938"]
[Result "1-0"]
[Round "07"]
[TimeControl "180+1"]
[Date "2022.03.09"]
[WhiteClock "0:00:07"]
[BlackClock "0:00:20"]

1. e4 {[%clk 0:03:00]}  c6 {[%clk 0:02:58]} 2. Nf3 {[%clk 0:02:58]}  d5 {[%clk 0:02:58]} 3. e5 {[%clk 0:02:59]}  Bf5 {[%clk 0:02:55]} 4. d4 {[%clk 0:02:54]}  e6 {[%clk 0:02:55]} 5. Be2 {[%clk 0:02:54]}  h6 {[%clk 0:02:49]} 6. O-O {[%clk 0:02:53]}  c5 {[%clk 0:02:46]} 7. Be3 {[%clk 0:02:52]}  Nc6 {[%clk 0:02:42]} 8. dxc5 {[%clk 0:02:50]}  Qc7 {[%clk 0:02:26]} 9. c4 {[%clk 0:02:39]}  dxc4 {[%clk 0:02:24]} 10. Bxc4 {[%clk 0:02:34]}  Rd8 {[%clk 0:02:23]} 11. Qa4 {[%clk 0:02:27]}  Ne7 {[%clk 0:02:12]} 12. Nc3 {[%clk 0:02:23]}  Nd5 {[%clk 0:02:11]} 13. Bxd5 {[%clk 0:02:04]}  exd5 {[%clk 0:02:11]} 14. Nb5 {[%clk 0:02:04]}  Qb8 {[%clk 0:02:10]} 15. Nd6+ {[%clk 0:02:03]}  Bxd6 {[%clk 0:02:10]} 16. exd6 {[%clk 0:01:58]}  O-O {[%clk 0:02:09]} 17. Rfe1 {[%clk 0:01:34]}  Qc8 {[%clk 0:02:03]} 18. b4 {[%clk 0:01:27]}  Be4 {[%clk 0:01:57]} 19. Nd2 {[%clk 0:01:18]}  Ne5 {[%clk 0:01:54]} 20. Nxe4 {[%clk 0:01:09]}  dxe4 {[%clk 0:01:54]} 21. Bd4 {[%clk 0:01:04]}  Qf5 {[%clk 0:01:41]} 22. Bxe5 {[%clk 0:00:54]}  Qxe5 {[%clk 0:01:41]} 23. Qxa7 {[%clk 0:00:54]}  Rb8 {[%clk 0:01:17]} 24. Rad1 {[%clk 0:00:50]}  Qc3 {[%clk 0:01:14]} 25. Qa4 {[%clk 0:00:35]}  Ra8 {[%clk 0:01:08]} 26. Qb3 {[%clk 0:00:35]}  Qe5 {[%clk 0:01:04]} 27. Qd5 {[%clk 0:00:31]}  Qxd5 {[%clk 0:01:00]} 28. Rxd5 {[%clk 0:00:30]}  Rxa2 {[%clk 0:01:00]} 29. d7 {[%clk 0:00:29]}  Rd8 {[%clk 0:00:59]} 30. g4 {[%clk 0:00:23]}  Kf8 {[%clk 0:00:55]} 31. Rxe4 {[%clk 0:00:20]}  Rb2 {[%clk 0:00:55]} 32. Red4 {[%clk 0:00:17]}  g6 {[%clk 0:00:50]} 33. Rd6 {[%clk 0:00:17]}  Ke7 {[%clk 0:00:48]} 34. Rb6 {[%clk 0:00:17]}  Rxd7 {[%clk 0:00:42]} 35. Rxd7+ {[%clk 0:00:17]}  Kxd7 {[%clk 0:00:43]} 36. Rxb7+ {[%clk 0:00:17]}  Kc6 {[%clk 0:00:41]} 37. Rxf7 {[%clk 0:00:16]}  Rxb4 {[%clk 0:00:41]} 38. Rf6+ {[%clk 0:00:15]}  Kxc5 {[%clk 0:00:42]} 39. Rxg6 {[%clk 0:00:16]}  Kd5 {[%clk 0:00:42]} 40. h3 {[%clk 0:00:16]}  Ke4 {[%clk 0:00:41]} 41. Rxh6 {[%clk 0:00:15]}  Kf3 {[%clk 0:00:38]} 42. Rf6+ {[%clk 0:00:15]}  Ke2 {[%clk 0:00:38]} 43. Kg2 {[%clk 0:00:15]}  Re4 {[%clk 0:00:36]} 44. Rf3 {[%clk 0:00:13]}  Rc4 {[%clk 0:00:31]} 45. Re3+ {[%clk 0:00:12]}  Kd2 {[%clk 0:00:31]} 46. Rg3 {[%clk 0:00:12]}  Rf4 {[%clk 0:00:26]} 47. g5 {[%clk 0:00:11]}  Ke2 {[%clk 0:00:27]} 48. Re3+ {[%clk 0:00:11]}  Kd2 {[%clk 0:00:27]} 49. g6 {[%clk 0:00:10]}  Rf6 {[%clk 0:00:24]} 50. Rg3 {[%clk 0:00:10]}  Ke2 {[%clk 0:00:24]} 51. Re3+ {[%clk 0:00:10]}  Kd2 {[%clk 0:00:24]} 52. g7 {[%clk 0:00:09]}  Rg6+ {[%clk 0:00:24]} 53. Rg3 {[%clk 0:00:09]}  Rd6 {[%clk 0:00:21]} 54. g8=Q {[%clk 0:00:09]}  Rd4 {[%clk 0:00:20]} 55. Qg5+ {[%clk 0:00:08]}  Ke1 {[%clk 0:00:20]} 56. Qe5+ {[%clk 0:00:07]}  Kd1 {[%clk 0:00:19]} 57. Qxd4+ {[%clk 0:00:07]}  Kc1 {[%clk 0:00:20]} 58. Rc3+ {[%clk 0:00:07]} 1-0


[Site "https://www.chess.com"]

[Event "Titled Tuesday Blitz March 08 Early 2022"]
[White "Coelho, Ramyres Santana"]
[Black "Hoffmann, Asa"]
[WhiteFideId "2120690"]
[BlackFideId "2001470"]
[WhiteElo "1888"]
[BlackElo "2117"]
[Result "0-1"]
[Round "07"]
[TimeControl "180+1"]
[Date "2022.03.09"]
[WhiteClock "0:01:37"]
[BlackClock "0:01:45"]

1. e4 {[%clk 0:03:00]}  d6 {[%clk 0:02:56]} 2. d4 {[%clk 0:02:59]}  Nf6 {[%clk 0:02:51]} 3. Nc3 {[%clk 0:03:00]}  c6 {[%clk 0:02:51]} 4. f3 {[%clk 0:03:00]}  Nbd7 {[%clk 0:02:47]} 5. Be3 {[%clk 0:02:59]}  e5 {[%clk 0:02:47]} 6. Qd2 {[%clk 0:02:59]}  b5 {[%clk 0:02:46]} 7. O-O-O {[%clk 0:02:59]}  Qc7 {[%clk 0:02:46]} 8. dxe5 {[%clk 0:02:56]}  dxe5 {[%clk 0:02:46]} 9. Bd3 {[%clk 0:02:52]}  Bb4 {[%clk 0:02:43]} 10. a3 {[%clk 0:02:51]}  Bc5 {[%clk 0:02:41]} 11. Bxc5 {[%clk 0:02:50]}  Nxc5 {[%clk 0:02:41]} 12. g4 {[%clk 0:02:49]}  Be6 {[%clk 0:02:40]} 13. g5 {[%clk 0:02:45]}  Nh5 {[%clk 0:02:39]} 14. Nge2 {[%clk 0:02:42]}  O-O-O {[%clk 0:02:38]} 15. Ng3 {[%clk 0:02:39]}  Nf4 {[%clk 0:02:38]} 16. Qe3 {[%clk 0:02:33]}  Qb6 {[%clk 0:02:27]} 17. Kb1 {[%clk 0:02:23]}  Ncxd3 {[%clk 0:02:25]} 18. Qxb6 {[%clk 0:02:22]}  axb6 {[%clk 0:02:24]} 19. cxd3 {[%clk 0:02:21]}  Nxd3 {[%clk 0:02:23]} 20. Rd2 {[%clk 0:02:16]}  Nf4 {[%clk 0:02:19]} 21. Rhd1 {[%clk 0:02:13]}  Rxd2 {[%clk 0:02:18]} 22. Rxd2 {[%clk 0:02:14]}  Rd8 {[%clk 0:02:16]} 23. Rxd8+ {[%clk 0:02:15]}  Kxd8 {[%clk 0:02:16]} 24. Nf5 {[%clk 0:02:13]}  Bxf5 {[%clk 0:02:16]} 25. exf5 {[%clk 0:02:14]}  Ke7 {[%clk 0:02:03]} 26. Ne4 {[%clk 0:02:13]}  f6 {[%clk 0:02:00]} 27. h4 {[%clk 0:02:11]}  h6 {[%clk 0:01:55]} 28. gxh6 {[%clk 0:02:08]}  gxh6 {[%clk 0:01:55]} 29. Kc2 {[%clk 0:02:05]}  Ne2 {[%clk 0:01:53]} 30. Kd3 {[%clk 0:01:51]}  Nd4 {[%clk 0:01:51]} 31. Ke3 {[%clk 0:01:48]}  Nxf5+ {[%clk 0:01:48]} 32. Kf2 {[%clk 0:01:47]}  Nxh4 {[%clk 0:01:48]} 33. Ng3 {[%clk 0:01:43]}  f5 {[%clk 0:01:46]} 34. Ke3 {[%clk 0:01:37]}  f4+ {[%clk 0:01:45]} 0-1


[Site "https://www.chess.com"]

[Event "Titled Tuesday Blitz March 08 Early 2022"]
[White "Cori T., Deysi"]
[Black "Leiva, Gianmarco"]
[WhiteFideId "3801934"]
[BlackFideId "3804399"]
[WhiteElo "2341"]
[BlackElo "2311"]
[Result "0-1"]
[Round "07"]
[TimeControl "180+1"]
[Date "2022.03.09"]
[WhiteClock "0:00:03"]
[BlackClock "0:00:15"]

1. d4 {[%clk 0:03:00]}  Nf6 {[%clk 0:03:00]} 2. Nf3 {[%clk 0:03:00]}  d5 {[%clk 0:03:00]} 3. c4 {[%clk 0:02:59]}  e6 {[%clk 0:03:00]} 4. Nc3 {[%clk 0:02:59]}  a6 {[%clk 0:02:58]} 5. e3 {[%clk 0:02:53]}  b6 {[%clk 0:02:56]} 6. Qc2 {[%clk 0:02:53]}  Bb7 {[%clk 0:02:56]} 7. Bd3 {[%clk 0:02:51]}  dxc4 {[%clk 0:02:56]} 8. Bxc4 {[%clk 0:02:52]}  Nbd7 {[%clk 0:02:56]} 9. e4 {[%clk 0:02:48]}  c5 {[%clk 0:02:55]} 10. O-O {[%clk 0:02:45]}  cxd4 {[%clk 0:02:51]} 11. Nxd4 {[%clk 0:02:43]}  Ne5 {[%clk 0:02:50]} 12. Rd1 {[%clk 0:02:36]}  Nxc4 {[%clk 0:02:06]} 13. Qa4+ {[%clk 0:02:35]}  b5 {[%clk 0:02:00]} 14. Ndxb5 {[%clk 0:02:34]}  Nd7 {[%clk 0:01:53]} 15. Qxc4 {[%clk 0:00:42]}  axb5 {[%clk 0:01:53]} 16. Nxb5 {[%clk 0:00:43]}  Rc8 {[%clk 0:01:52]} 17. Qd4 {[%clk 0:00:38]}  Nc5 {[%clk 0:01:17]} 18. Qxd8+ {[%clk 0:00:10]}  Rxd8 {[%clk 0:01:17]} 19. Nc7+ {[%clk 0:00:07]}  Ke7 {[%clk 0:01:17]} 20. Bg5+ {[%clk 0:00:07]}  f6 {[%clk 0:01:16]} 21. Be3 {[%clk 0:00:07]}  Nxe4 {[%clk 0:01:09]} 22. Rxd8 {[%clk 0:00:04]}  Kxd8 {[%clk 0:01:07]} 23. Nxe6+ {[%clk 0:00:05]}  Ke7 {[%clk 0:01:06]} 24. Nc7 {[%clk 0:00:04]}  Kd7 {[%clk 0:01:02]} 25. Nb5 {[%clk 0:00:03]}  Bc5 {[%clk 0:01:03]} 26. Rd1+ {[%clk 0:00:03]}  Kc6 {[%clk 0:01:02]} 27. Bxc5 {[%clk 0:00:03]}  Nxc5 {[%clk 0:01:03]} 28. Nd4+ {[%clk 0:00:04]}  Kb6 {[%clk 0:01:00]} 29. Nf5 {[%clk 0:00:04]}  Ra8 {[%clk 0:00:54]} 30. a3 {[%clk 0:00:04]}  Na4 {[%clk 0:00:54]} 31. Rd4 {[%clk 0:00:03]}  Kc5 {[%clk 0:00:29]} 32. Rb4 {[%clk 0:00:02]}  Bc6 {[%clk 0:00:26]} 33. Nxg7 {[%clk 0:00:02]}  Rg8 {[%clk 0:00:25]} 34. Ne6+ {[%clk 0:00:02]}  Kd6 {[%clk 0:00:23]} 35. Nf4 {[%clk 0:00:03]}  Re8 {[%clk 0:00:17]} 36. h3 {[%clk 0:00:02]}  Re1+ {[%clk 0:00:17]} 37. Kh2 {[%clk 0:00:03]}  Rf1 {[%clk 0:00:16]} 38. g3 {[%clk 0:00:03]}  Rh1# {[%clk 0:00:15]} 0-1


[Site "https://www.chess.com"]